[Event "Late-Titled-Tuesday-Blitz-March-26-2024"]
[Site "Chess.com"]
[Date "2024.03.26"]
[Round "2"]
[White "hansen"]
[Black "arenal72"]
[Result "1-0"]
[WhiteElo "2962"]
[BlackElo "2617"]
[TimeControl "180+1"]
[EndTime "14:19:07 PDT"]
[Termination "hansen won by checkmate"]

1. Nf3 {[%clk 0:02:51.8]} 1... d6 {[%clk 0:02:59.2]} 2. d4 {[%clk 0:02:48.2]}
2... g6 {[%clk 0:02:59.5]} 3. e4 {[%clk 0:02:47.9]} 3... Nf6 {[%clk 0:02:58.1]}
4. Nc3 {[%clk 0:02:45]} 4... Nc6 {[%clk 0:02:57.5]} 5. Bb5 {[%clk 0:02:40.6]}
5... a6 {[%clk 0:02:56.4]} 6. Bxc6+ {[%clk 0:02:39.1]} 6... bxc6 {[%clk
0:02:57.3]} 7. h3 {[%clk 0:02:39.3]} 7... Bg7 {[%clk 0:02:57.4]} 8. O-O {[%clk
0:02:36.2]} 8... O-O {[%clk 0:02:57.6]} 9. e5 {[%clk 0:02:34]} 9... Nd5 {[%clk
0:02:57.2]} 10. Ne4 {[%clk 0:02:30]} 10... h6 {[%clk 0:02:43.6]} 11. Re1 {[%clk
0:02:29.3]} 11... Be6 {[%clk 0:02:37]} 12. c4 {[%clk 0:02:20.8]} 12... Nb6
{[%clk 0:02:33.8]} 13. b3 {[%clk 0:02:21.2]} 13... d5 {[%clk 0:02:25.1]} 14. Nc5
{[%clk 0:02:21.6]} 14... dxc4 {[%clk 0:02:24.8]} 15. Nxe6 {[%clk 0:02:22.1]}
15... fxe6 {[%clk 0:02:24.7]} 16. bxc4 {[%clk 0:02:13.1]} 16... Nxc4 {[%clk
0:02:23.8]} 17. Qd3 {[%clk 0:02:12.6]} 17... Rxf3 {[%clk 0:02:09]} 18. Qxf3
{[%clk 0:01:45]} 18... Qxd4 {[%clk 0:02:05.5]} 19. Qxc6 {[%clk 0:01:45.4]} 19...
Rf8 {[%clk 0:01:55.4]} 20. Qxe6+ {[%clk 0:01:45.7]} 20... Kh7 {[%clk 0:01:54.5]}
21. Be3 {[%clk 0:01:46.4]} 21... Nxe3 {[%clk 0:01:38.5]} 22. fxe3 {[%clk
0:01:46.5]} 22... Qd2 {[%clk 0:01:26.9]} 23. Rad1 {[%clk 0:01:42.2]} 23... Qf2+
{[%clk 0:01:23.4]} 24. Kh1 {[%clk 0:01:41.9]} 24... Rf5 {[%clk 0:01:13.8]} 25.
Qxe7 {[%clk 0:01:34.1]} 25... Rxe5 {[%clk 0:01:12.4]} 26. Qxc7 {[%clk
0:01:29.6]} 26... Rxe3 {[%clk 0:01:09.3]} 27. Rxe3 {[%clk 0:01:11.3]} 27... Qxe3
{[%clk 0:01:10.2]} 28. Qc4 {[%clk 0:00:50.2]} 28... a5 {[%clk 0:00:58.9]} 29.
Qd3 {[%clk 0:00:49.4]} 29... Qg5 {[%clk 0:00:49.7]} 30. g3 {[%clk 0:00:45.1]}
30... h5 {[%clk 0:00:47.7]} 31. Qf3 {[%clk 0:00:36.5]} 31... Qb5 {[%clk
0:00:41.3]} 32. Rd2 {[%clk 0:00:31.6]} 32... Qb4 {[%clk 0:00:29.9]} 33. Re2
{[%clk 0:00:29.5]} 33... Bd4 {[%clk 0:00:22.7]} 34. Kg2 {[%clk 0:00:26.6]} 34...
Kg7 {[%clk 0:00:14.6]} 35. Qe4 {[%clk 0:00:22.1]} 35... Qc3 {[%clk 0:00:11.5]}
36. Rc2 {[%clk 0:00:17.6]} 36... Qa1 {[%clk 0:00:10.5]} 37. Rc7+ {[%clk
0:00:09.3]} 37... Kh6 {[%clk 0:00:09.4]} 38. Qf4+ {[%clk 0:00:09.5]} 38... g5
{[%clk 0:00:09.3]} 39. Rc6+ {[%clk 0:00:09.7]} 39... Kh7 {[%clk 0:00:06.6]} 40.
Qf7+ {[%clk 0:00:09.2]} 40... Bg7 {[%clk 0:00:05.5]} 41. Qg6+ {[%clk 0:00:09.5]}
41... Kg8 {[%clk 0:00:04.5]} 42. Rc8# {[%clk 0:00:10.4]} 1-0

[Event "Late-Titled-Tuesday-Blitz-March-26-2024"]
[Site "Chess.com"]
[Date "2024.03.26"]
[Round "2"]
[White "sotochess"]
[Black "VojtechPlat"]
[Result "1-0"]
[WhiteElo "2602"]
[BlackElo "2853"]
[TimeControl "180+1"]
[EndTime "14:19:07 PDT"]
[Termination "sotochess won on time"]

1. e4 {[%clk 0:02:59.6]} 1... d6 {[%clk 0:03:00.4]} 2. d4 {[%clk 0:02:58.2]}
2... Nf6 {[%clk 0:03:00.7]} 3. Nc3 {[%clk 0:02:57.6]} 3... e5 {[%clk 0:03:01.3]}
4. Nf3 {[%clk 0:02:56.7]} 4... exd4 {[%clk 0:03:01]} 5. Nxd4 {[%clk 0:02:56.4]}
5... g6 {[%clk 0:03:01.5]} 6. g3 {[%clk 0:02:52.2]} 6... Bg7 {[%clk 0:03:01.1]}
7. Bg2 {[%clk 0:02:52.1]} 7... O-O {[%clk 0:03:01.8]} 8. O-O {[%clk 0:02:51.9]}
8... Re8 {[%clk 0:03:02.3]} 9. h3 {[%clk 0:02:49.4]} 9... Na6 {[%clk 0:03:02.2]}
10. Re1 {[%clk 0:02:40.9]} 10... Nc5 {[%clk 0:03:01.8]} 11. Bg5 {[%clk
0:02:31.4]} 11... c6 {[%clk 0:03:00]} 12. Qd2 {[%clk 0:02:26.7]} 12... a5 {[%clk
0:02:58]} 13. Rad1 {[%clk 0:02:25.7]} 13... Qe7 {[%clk 0:02:56]} 14. Nb3 {[%clk
0:02:18]} 14... Nxb3 {[%clk 0:02:54.8]} 15. axb3 {[%clk 0:02:17.6]} 15... Be6
{[%clk 0:02:27.7]} 16. Qxd6 {[%clk 0:02:15.3]} 16... Qxd6 {[%clk 0:02:27.9]} 17.
Rxd6 {[%clk 0:02:14.9]} 17... Nd7 {[%clk 0:02:28.1]} 18. Red1 {[%clk 0:02:06.2]}
18... Nc5 {[%clk 0:02:28]} 19. Be3 {[%clk 0:02:03.9]} 19... Na6 {[%clk
0:02:27.7]} 20. f4 {[%clk 0:01:57.6]} 20... Nb4 {[%clk 0:02:26.5]} 21. R6d2
{[%clk 0:01:56.2]} 21... f5 {[%clk 0:02:00.6]} 22. e5 {[%clk 0:01:52.8]} 22...
Bf8 {[%clk 0:02:00.5]} 23. Kh2 {[%clk 0:01:46.7]} 23... h6 {[%clk 0:01:58.5]}
24. h4 {[%clk 0:01:45.9]} 24... Be7 {[%clk 0:01:58.1]} 25. Na4 {[%clk
0:01:41.5]} 25... Kf7 {[%clk 0:01:56.5]} 26. Bc5 {[%clk 0:01:40.2]} 26... Red8
{[%clk 0:01:48.3]} 27. Bxe7 {[%clk 0:01:31]} 27... Rxd2 {[%clk 0:01:45.6]} 28.
Rxd2 {[%clk 0:01:30.7]} 28... Kxe7 {[%clk 0:01:45.9]} 29. Nc5 {[%clk 0:01:30.9]}
29... Bc8 {[%clk 0:01:35.2]} 30. c3 {[%clk 0:01:30.2]} 30... Na6 {[%clk
0:01:33.1]} 31. Na4 {[%clk 0:01:26.4]} 31... Be6 {[%clk 0:01:32.9]} 32. Bf1
{[%clk 0:01:13.2]} 32... Nc7 {[%clk 0:01:28.5]} 33. Nc5 {[%clk 0:01:12.1]} 33...
Bc8 {[%clk 0:01:03.1]} 34. Rd6 {[%clk 0:01:06.6]} 34... Ne6 {[%clk 0:01:03]} 35.
Na4 {[%clk 0:01:00.1]} 35... g5 {[%clk 0:00:54.4]} 36. Nb6 {[%clk 0:00:55.2]}
36... Rb8 {[%clk 0:00:54.4]} 37. Bc4 {[%clk 0:00:53.1]} 37... Nc5 {[%clk
0:00:54.1]} 38. Rxh6 {[%clk 0:00:49.6]} 38... gxf4 {[%clk 0:00:54.2]} 39. gxf4
{[%clk 0:00:49.6]} 39... Be6 {[%clk 0:00:53.7]} 40. Rh7+ {[%clk 0:00:47.4]}
40... Kd8 {[%clk 0:00:53.4]} 41. Rh8+ {[%clk 0:00:46.6]} 41... Kc7 {[%clk
0:00:53.4]} 42. Rxb8 {[%clk 0:00:46.3]} 42... Kxb8 {[%clk 0:00:53.5]} 43. h5
{[%clk 0:00:46.5]} 43... Kc7 {[%clk 0:00:47.9]} 44. h6 {[%clk 0:00:46]} 44...
Kxb6 {[%clk 0:00:46.7]} 45. h7 {[%clk 0:00:45.6]} 1-0

[Event "Late-Titled-Tuesday-Blitz-March-26-2024"]
[Site "Chess.com"]
[Date "2024.03.26"]
[Round "2"]
[White "Korchmar_Vasiliy"]
[Black "Konavets"]
[Result "1/2-1/2"]
[WhiteElo "2700"]
[BlackElo "3147"]
[TimeControl "180+1"]
[EndTime "14:19:08 PDT"]
[Termination "Game drawn by repetition"]

1. e4 {[%clk 0:03:00.9]} 1... c5 {[%clk 0:02:58.3]} 2. d4 {[%clk 0:03:00.8]}
2... cxd4 {[%clk 0:02:58.6]} 3. Qxd4 {[%clk 0:03:01.7]} 3... Nc6 {[%clk
0:02:58.3]} 4. Qd3 {[%clk 0:03:02.3]} 4... g6 {[%clk 0:02:57.8]} 5. Nc3 {[%clk
0:03:02.6]} 5... Bg7 {[%clk 0:02:58.4]} 6. Nf3 {[%clk 0:03:03.2]} 6... d6 {[%clk
0:02:58.4]} 7. Be2 {[%clk 0:03:03.9]} 7... Nh6 {[%clk 0:02:58.8]} 8. O-O {[%clk
0:03:02.2]} 8... O-O {[%clk 0:02:59]} 9. Bg5 {[%clk 0:02:46.2]} 9... f6 {[%clk
0:02:59.4]} 10. Bd2 {[%clk 0:02:35.5]} 10... f5 {[%clk 0:02:58.9]} 11. Ng5
{[%clk 0:02:22.6]} 11... fxe4 {[%clk 0:02:56.1]} 12. Ncxe4 {[%clk 0:02:20.5]}
12... Kh8 {[%clk 0:02:52.6]} 13. Bc3 {[%clk 0:02:07.7]} 13... Ne5 {[%clk
0:02:50]} 14. Qd5 {[%clk 0:01:47.3]} 14... Qb6 {[%clk 0:02:35.3]} 15. Ne6 {[%clk
0:01:15.6]} 15... Bxe6 {[%clk 0:02:34.3]} 16. Qxe6 {[%clk 0:01:16.5]} 16... Nf5
{[%clk 0:02:34.8]} 17. Ng5 {[%clk 0:00:49.9]} 17... Rf6 {[%clk 0:00:59.9]} 18.
Qd5 {[%clk 0:00:40.3]} 18... e6 {[%clk 0:00:53.4]} 19. Qb3 {[%clk 0:00:31.3]}
19... h6 {[%clk 0:00:27]} 20. Ne4 {[%clk 0:00:31.4]} 20... Rff8 {[%clk
0:00:20.6]} 21. Qxe6 {[%clk 0:00:30.7]} 21... Nd4 {[%clk 0:00:18.9]} 22. Bxd4
{[%clk 0:00:24]} 22... Qxd4 {[%clk 0:00:19.8]} 23. Bd3 {[%clk 0:00:15.8]} 23...
d5 {[%clk 0:00:16]} 24. Nc3 {[%clk 0:00:11.7]} 24... Rad8 {[%clk 0:00:16.2]} 25.
Rad1 {[%clk 0:00:09.5]} 25... Qh4 {[%clk 0:00:12.6]} 26. h3 {[%clk 0:00:06.7]}
26... Rf6 {[%clk 0:00:10.5]} 27. Qe7 {[%clk 0:00:07]} 27... Rd7 {[%clk
0:00:07.8]} 28. Qxe5 {[%clk 0:00:07.2]} 28... Kh7 {[%clk 0:00:04.9]} 29. Qg3
{[%clk 0:00:07.1]} 29... Qb4 {[%clk 0:00:04.7]} 30. Ne2 {[%clk 0:00:06.7]} 30...
Rdf7 {[%clk 0:00:04.1]} 31. b3 {[%clk 0:00:04.7]} 31... h5 {[%clk 0:00:04.2]}
32. h4 {[%clk 0:00:04.1]} 32... Bf8 {[%clk 0:00:04.8]} 33. Nd4 {[%clk 0:00:04]}
33... Bd6 {[%clk 0:00:03.7]} 34. Qh3 {[%clk 0:00:04]} 34... Kg8 {[%clk
0:00:03.4]} 35. Nf3 {[%clk 0:00:03.8]} 35... Kg7 {[%clk 0:00:03.3]} 36. Ng5
{[%clk 0:00:04.2]} 36... Re7 {[%clk 0:00:03.8]} 37. Nf3 {[%clk 0:00:02.2]} 37...
Qf4 {[%clk 0:00:04]} 38. Ng5 {[%clk 0:00:01.7]} 38... Qb4 {[%clk 0:00:03.9]} 39.
Qh1 {[%clk 0:00:01.3]} 39... Qf4 {[%clk 0:00:03.9]} 40. Qh3 {[%clk 0:00:01.7]}
40... Qb4 {[%clk 0:00:04.4]} 1/2-1/2

[Event "Late-Titled-Tuesday-Blitz-March-26-2024"]
[Site "Chess.com"]
[Date "2024.03.26"]
[Round "2"]
[White "zverr1"]
[Black "1800_strength"]
[Result "1-0"]
[WhiteElo "2560"]
[BlackElo "2794"]
[TimeControl "180+1"]
[EndTime "14:19:09 PDT"]
[Termination "zverr1 won by resignation"]

1. e4 {[%clk 0:03:00.9]} 1... g6 {[%clk 0:03:00.9]} 2. d4 {[%clk 0:03:00.8]}
2... Bg7 {[%clk 0:03:01]} 3. Nc3 {[%clk 0:03:01.5]} 3... d5 {[%clk 0:03:01]} 4.
exd5 {[%clk 0:02:58.6]} 4... Nf6 {[%clk 0:03:00.9]} 5. Bc4 {[%clk 0:02:52]} 5...
Nbd7 {[%clk 0:02:57.8]} 6. Bg5 {[%clk 0:02:27.9]} 6... Nb6 {[%clk 0:02:55.7]} 7.
Bxf6 {[%clk 0:02:27.7]} 7... Bxf6 {[%clk 0:02:35.5]} 8. Bb3 {[%clk 0:02:20]}
8... O-O {[%clk 0:02:35.1]} 9. Nge2 {[%clk 0:02:15.7]} 9... a5 {[%clk
0:02:35.6]} 10. a4 {[%clk 0:02:10.4]} 10... Bg7 {[%clk 0:02:10.9]} 11. O-O
{[%clk 0:02:09.9]} 11... Qd6 {[%clk 0:02:08.9]} 12. Qd2 {[%clk 0:02:03.4]} 12...
c6 {[%clk 0:02:08.3]} 13. dxc6 {[%clk 0:01:51.9]} 13... bxc6 {[%clk 0:02:09.2]}
14. Ne4 {[%clk 0:01:37]} 14... Qc7 {[%clk 0:02:03.9]} 15. Nc5 {[%clk 0:01:33.5]}
15... Rd8 {[%clk 0:01:56.3]} 16. Qe3 {[%clk 0:01:16.9]} 16... e5 {[%clk
0:01:36.4]} 17. Rad1 {[%clk 0:01:02.2]} 17... Nd5 {[%clk 0:01:17.9]} 18. Qf3
{[%clk 0:00:43.5]} 18... Qb6 {[%clk 0:00:54]} 19. Bxd5 {[%clk 0:00:34.5]} 19...
cxd5 {[%clk 0:00:27.8]} 20. Nb3 {[%clk 0:00:29.7]} 20... e4 {[%clk 0:00:26.3]}
21. Qc3 {[%clk 0:00:26.9]} 21... Ba6 {[%clk 0:00:25.6]} 22. Qd2 {[%clk
0:00:24.8]} 22... Qb4 {[%clk 0:00:20]} 23. Qxb4 {[%clk 0:00:21.5]} 23... axb4
{[%clk 0:00:20.9]} 24. Rfe1 {[%clk 0:00:21.6]} 24... Bxe2 {[%clk 0:00:21.1]} 25.
Rxe2 {[%clk 0:00:21.4]} 25... Rxa4 {[%clk 0:00:21.9]} 26. Nc5 {[%clk 0:00:20.3]}
26... Ra2 {[%clk 0:00:22.2]} 27. b3 {[%clk 0:00:20.4]} 27... Rc8 {[%clk
0:00:21.1]} 28. g3 {[%clk 0:00:12.8]} 28... Bf8 {[%clk 0:00:20.5]} 29. Nd7
{[%clk 0:00:10]} 29... Rd8 {[%clk 0:00:17.9]} 30. Ne5 {[%clk 0:00:07.5]} 30...
f6 {[%clk 0:00:16.2]} 31. Ng4 {[%clk 0:00:06.4]} 31... Kf7 {[%clk 0:00:15.2]}
32. Kf1 {[%clk 0:00:04.7]} 32... Ke6 {[%clk 0:00:14.9]} 33. Ne3 {[%clk
0:00:05.3]} 33... Bh6 {[%clk 0:00:14.6]} 34. c4 {[%clk 0:00:02.8]} 34... Rxe2
{[%clk 0:00:10]} 35. cxd5+ {[%clk 0:00:03.4]} 35... Rxd5 {[%clk 0:00:09.6]} 36.
Kxe2 {[%clk 0:00:04.3]} 36... Bxe3 {[%clk 0:00:09.1]} 37. Kxe3 {[%clk
0:00:04.2]} 37... f5 {[%clk 0:00:06]} 38. Ra1 {[%clk 0:00:04.2]} 38... Rd6
{[%clk 0:00:05.8]} 39. Ra5 {[%clk 0:00:04.2]} 39... Rc6 {[%clk 0:00:06.1]} 40.
d5+ {[%clk 0:00:04.6]} 1-0

[Event "Late-Titled-Tuesday-Blitz-March-26-2024"]
[Site "Chess.com"]
[Date "2024.03.26"]
[Round "2"]
[White "guillembaches"]
[Black "MyDream003"]
[Result "1/2-1/2"]
[WhiteElo "2549"]
[BlackElo "2789"]
[TimeControl "180+1"]
[EndTime "14:19:09 PDT"]
[Termination "Game drawn by repetition"]

1. d4 {[%clk 0:03:00.9]} 1... Nf6 {[%clk 0:02:59.8]} 2. Nf3 {[%clk 0:03:01.4]}
2... d5 {[%clk 0:02:59.3]} 3. Bg5 {[%clk 0:03:01.9]} 3... Ne4 {[%clk 0:02:57.9]}
4. Bh4 {[%clk 0:03:02.1]} 4... c5 {[%clk 0:02:54.3]} 5. e3 {[%clk 0:03:02.3]}
5... Nc6 {[%clk 0:02:52.7]} 6. c3 {[%clk 0:03:02]} 6... Qb6 {[%clk 0:02:50.8]}
7. Qc1 {[%clk 0:03:01.7]} 7... Bf5 {[%clk 0:02:47.9]} 8. Nbd2 {[%clk 0:03:01.7]}
8... e6 {[%clk 0:02:44.6]} 9. Be2 {[%clk 0:03:00.4]} 9... Bd6 {[%clk 0:02:40.2]}
10. O-O {[%clk 0:02:59.5]} 10... O-O {[%clk 0:02:37.6]} 11. Nxe4 {[%clk
0:02:56.1]} 11... Bxe4 {[%clk 0:02:38.5]} 12. Nd2 {[%clk 0:02:51]} 12... Bg6
{[%clk 0:02:36.6]} 13. Bg3 {[%clk 0:02:48.1]} 13... Be7 {[%clk 0:02:23.1]} 14.
Nf3 {[%clk 0:02:33.5]} 14... Rac8 {[%clk 0:02:19.9]} 15. Qd2 {[%clk 0:02:33.2]}
15... Bh5 {[%clk 0:02:13.9]} 16. Ne5 {[%clk 0:02:28.7]} 16... Bxe2 {[%clk
0:02:13.4]} 17. Qxe2 {[%clk 0:02:28.8]} 17... Nxe5 {[%clk 0:02:12.1]} 18. Bxe5
{[%clk 0:02:28]} 18... Qc6 {[%clk 0:02:08.2]} 19. Qg4 {[%clk 0:02:10.1]} 19...
f6 {[%clk 0:02:07.5]} 20. Bf4 {[%clk 0:02:05.2]} 20... Kh8 {[%clk 0:02:01.4]}
21. h4 {[%clk 0:02:00.5]} 21... c4 {[%clk 0:01:56.6]} 22. h5 {[%clk 0:01:57.6]}
22... b5 {[%clk 0:01:50.2]} 23. a3 {[%clk 0:01:54.1]} 23... a5 {[%clk
0:01:50.1]} 24. h6 {[%clk 0:01:48.6]} 24... g6 {[%clk 0:01:50]} 25. Rfe1 {[%clk
0:01:35.9]} 25... f5 {[%clk 0:01:44.3]} 26. Qg3 {[%clk 0:01:30.4]} 26... Rf7
{[%clk 0:01:34.4]} 27. Be5+ {[%clk 0:01:24.3]} 27... Kg8 {[%clk 0:01:34.3]} 28.
Qf3 {[%clk 0:01:18.6]} 28... Bf8 {[%clk 0:01:29.2]} 29. Bf4 {[%clk 0:01:17.9]}
29... Qd7 {[%clk 0:01:28.9]} 30. Qg3 {[%clk 0:01:13.4]} 30... Be7 {[%clk
0:01:27.3]} 31. Be5 {[%clk 0:01:12]} 31... Qd8 {[%clk 0:01:25.2]} 32. Qh3 {[%clk
0:01:06.9]} 32... Bg5 {[%clk 0:01:24.5]} 33. Bf4 {[%clk 0:01:04.4]} 33... Bf6
{[%clk 0:01:24.4]} 34. f3 {[%clk 0:00:59.9]} 34... Qd7 {[%clk 0:01:09.7]} 35.
Qh2 {[%clk 0:00:53.1]} 35... Be7 {[%clk 0:01:07]} 36. e4 {[%clk 0:00:50.7]}
36... fxe4 {[%clk 0:01:06.5]} 37. fxe4 {[%clk 0:00:50.6]} 37... Rcf8 {[%clk
0:01:07.2]} 38. Be5 {[%clk 0:00:45.1]} 38... Rf2 {[%clk 0:00:56.8]} 39. Bg7
{[%clk 0:00:43.8]} 39... R8f7 {[%clk 0:00:56.3]} 40. Qb8+ {[%clk 0:00:40.2]}
40... Bf8 {[%clk 0:00:56.2]} 41. Rf1 {[%clk 0:00:35.2]} 41... Rxf1+ {[%clk
0:00:26.2]} 42. Rxf1 {[%clk 0:00:34.3]} 42... Rxf1+ {[%clk 0:00:27]} 43. Kxf1
{[%clk 0:00:34.9]} 43... Qf7+ {[%clk 0:00:27.7]} 44. Ke2 {[%clk 0:00:34]} 44...
dxe4 {[%clk 0:00:28.2]} 45. Bxf8 {[%clk 0:00:26.9]} 45... Qxf8 {[%clk
0:00:28.1]} 46. Qxb5 {[%clk 0:00:26.4]} 46... Qxh6 {[%clk 0:00:11.8]} 47. Qe8+
{[%clk 0:00:26.2]} 47... Kg7 {[%clk 0:00:10.9]} 48. Qe7+ {[%clk 0:00:25.9]}
48... Kg8 {[%clk 0:00:11.4]} 49. Qe8+ {[%clk 0:00:26.2]} 49... Kg7 {[%clk
0:00:11.8]} 50. Qe7+ {[%clk 0:00:26.4]} 50... Kg8 {[%clk 0:00:12.4]} 51. Qe8+
{[%clk 0:00:26.7]} 1/2-1/2

[Event "Late-Titled-Tuesday-Blitz-March-26-2024"]
[Site "Chess.com"]
[Date "2024.03.26"]
[Round "2"]
[White "Zq1"]
[Black "Andreikka"]
[Result "0-1"]
[WhiteElo "2632"]
[BlackElo "2997"]
[TimeControl "180+1"]
[EndTime "14:19:14 PDT"]
[Termination "Andreikka won on time"]

1. d4 {[%clk 0:03:00.9]} 1... Nf6 {[%clk 0:02:59.3]} 2. c4 {[%clk 0:03:00.8]}
2... e6 {[%clk 0:02:59]} 3. Nf3 {[%clk 0:03:00.2]} 3... h6 {[%clk 0:02:57.3]} 4.
Nc3 {[%clk 0:02:57.2]} 4... Bb4 {[%clk 0:02:56.3]} 5. Bd2 {[%clk 0:02:50.4]}
5... b6 {[%clk 0:02:51.2]} 6. a3 {[%clk 0:02:49.5]} 6... Bxc3 {[%clk 0:02:51.6]}
7. Bxc3 {[%clk 0:02:49.6]} 7... Bb7 {[%clk 0:02:52.3]} 8. e3 {[%clk 0:02:44.7]}
8... d6 {[%clk 0:02:50.5]} 9. Be2 {[%clk 0:02:40.4]} 9... Nbd7 {[%clk
0:02:50.7]} 10. O-O {[%clk 0:02:38.7]} 10... Ne4 {[%clk 0:02:51.2]} 11. Be1
{[%clk 0:02:35.7]} 11... O-O {[%clk 0:02:45.5]} 12. b4 {[%clk 0:02:34.8]} 12...
c5 {[%clk 0:02:44.1]} 13. dxc5 {[%clk 0:02:34.2]} 13... dxc5 {[%clk 0:02:41.6]}
14. Qc2 {[%clk 0:02:25.2]} 14... Qf6 {[%clk 0:02:33.4]} 15. Rb1 {[%clk
0:02:13.3]} 15... Rfd8 {[%clk 0:02:28.8]} 16. b5 {[%clk 0:02:05.5]} 16... Ng5
{[%clk 0:01:53.1]} 17. Bc3 {[%clk 0:01:45.5]} 17... e5 {[%clk 0:01:44.1]} 18.
Nd2 {[%clk 0:01:32.6]} 18... Qe6 {[%clk 0:01:22.4]} 19. f3 {[%clk 0:01:22.2]}
19... Nf8 {[%clk 0:01:09.7]} 20. Rfd1 {[%clk 0:01:19.2]} 20... Ng6 {[%clk
0:01:07.5]} 21. Nf1 {[%clk 0:01:19]} 21... Ne7 {[%clk 0:01:05.3]} 22. e4 {[%clk
0:01:15.9]} 22... f5 {[%clk 0:00:55.5]} 23. Nd2 {[%clk 0:00:40.5]} 23... Qf6
{[%clk 0:00:42.5]} 24. Bd3 {[%clk 0:00:36.6]} 24... f4 {[%clk 0:00:39.3]} 25.
Be2 {[%clk 0:00:32.5]} 25... Ne6 {[%clk 0:00:39.1]} 26. Nb3 {[%clk 0:00:26.8]}
26... Nd4 {[%clk 0:00:29.5]} 27. Bxd4 {[%clk 0:00:26.8]} 27... exd4 {[%clk
0:00:30.4]} 28. Bd3 {[%clk 0:00:25.8]} 28... Ng6 {[%clk 0:00:29.6]} 29. a4
{[%clk 0:00:19.9]} 29... Ne5 {[%clk 0:00:21.4]} 30. a5 {[%clk 0:00:19.8]} 30...
Rd6 {[%clk 0:00:21.3]} 31. axb6 {[%clk 0:00:15.3]} 31... axb6 {[%clk 0:00:21]}
32. Ra1 {[%clk 0:00:15.6]} 32... Rf8 {[%clk 0:00:21.4]} 33. Ra7 {[%clk
0:00:14.8]} 33... Bc8 {[%clk 0:00:21.6]} 34. Rda1 {[%clk 0:00:12.7]} 34... Qg5
{[%clk 0:00:21.6]} 35. Kh1 {[%clk 0:00:12.7]} 35... Rg6 {[%clk 0:00:18.9]} 36.
Rd1 {[%clk 0:00:07.1]} 36... Be6 {[%clk 0:00:14.7]} 37. Ra4 {[%clk 0:00:04.8]}
37... Kh8 {[%clk 0:00:12.5]} 38. Qe2 {[%clk 0:00:03.5]} 38... Qh5 {[%clk
0:00:08.9]} 39. Re1 {[%clk 0:00:03.4]} 39... Rff6 {[%clk 0:00:07.5]} 40. Rf1
{[%clk 0:00:03.2]} 40... Rg5 {[%clk 0:00:07.4]} 41. Nd2 {[%clk 0:00:02.2]} 41...
Rfg6 {[%clk 0:00:07]} 42. Rg1 {[%clk 0:00:01.7]} 42... Qh4 {[%clk 0:00:07.5]}
0-1

[Event "Late-Titled-Tuesday-Blitz-March-26-2024"]
[Site "Chess.com"]
[Date "2024.03.26"]
[Round "2"]
[White "Siemba"]
[Black "Agibileg"]
[Result "0-1"]
[WhiteElo "2458"]
[BlackElo "2767"]
[TimeControl "180+1"]
[EndTime "14:19:17 PDT"]
[Termination "Agibileg won on time"]

1. e4 {[%clk 0:03:00.9]} 1... c5 {[%clk 0:02:59]} 2. Nf3 {[%clk 0:03:00.9]} 2...
e6 {[%clk 0:02:59.4]} 3. d4 {[%clk 0:03:01.4]} 3... cxd4 {[%clk 0:03:00.1]} 4.
Nxd4 {[%clk 0:03:02.3]} 4... Nc6 {[%clk 0:03:00.5]} 5. Nc3 {[%clk 0:03:00.6]}
5... a6 {[%clk 0:03:01]} 6. Be3 {[%clk 0:03:00.1]} 6... Nf6 {[%clk 0:03:00.3]}
7. Qd2 {[%clk 0:02:48.8]} 7... e5 {[%clk 0:02:59.1]} 8. Nxc6 {[%clk 0:02:47.5]}
8... bxc6 {[%clk 0:02:58.3]} 9. f4 {[%clk 0:02:37.7]} 9... Ng4 {[%clk
0:02:28.9]} 10. Bc4 {[%clk 0:02:31.2]} 10... Nxe3 {[%clk 0:02:19.5]} 11. Qxe3
{[%clk 0:02:27.1]} 11... Bb4 {[%clk 0:02:14.2]} 12. O-O {[%clk 0:02:23]} 12...
O-O {[%clk 0:02:14.3]} 13. Kh1 {[%clk 0:02:22.8]} 13... d6 {[%clk 0:02:06.1]}
14. Rad1 {[%clk 0:02:12.4]} 14... Qe7 {[%clk 0:01:58.4]} 15. f5 {[%clk
0:02:02.5]} 15... Qf6 {[%clk 0:01:49.7]} 16. Na4 {[%clk 0:01:42.7]} 16... Rb8
{[%clk 0:01:38.1]} 17. a3 {[%clk 0:01:19.4]} 17... Ba5 {[%clk 0:01:37.7]} 18.
Qa7 {[%clk 0:01:15.1]} 18... Bb7 {[%clk 0:01:34.9]} 19. Bxa6 {[%clk 0:01:06.6]}
19... Ba8 {[%clk 0:01:21.1]} 20. Bc4 {[%clk 0:00:58.1]} 20... Qd8 {[%clk
0:01:20.1]} 21. f6 {[%clk 0:00:55.9]} 21... d5 {[%clk 0:01:05.5]} 22. fxg7
{[%clk 0:00:54]} 22... Kxg7 {[%clk 0:01:05.1]} 23. Nc5 {[%clk 0:00:41.5]} 23...
Kh8 {[%clk 0:00:53]} 24. Rxf7 {[%clk 0:00:37.9]} 24... Rxf7 {[%clk 0:00:38.8]}
25. Qxf7 {[%clk 0:00:38.8]} 25... Qf8 {[%clk 0:00:29.4]} 26. Qh5 {[%clk
0:00:20.5]} 26... Qf6 {[%clk 0:00:24.8]} 27. Nd7 {[%clk 0:00:18.5]} 27... Qe6
{[%clk 0:00:16.4]} 28. Nxb8 {[%clk 0:00:08.6]} 28... dxc4 {[%clk 0:00:16.1]} 29.
Nd7 {[%clk 0:00:05.2]} 29... Bc7 {[%clk 0:00:14.6]} 30. Nc5 {[%clk 0:00:04.8]}
30... Qe7 {[%clk 0:00:13.6]} 31. b4 {[%clk 0:00:03.5]} 31... cxb3 {[%clk
0:00:12.1]} 32. Nxb3 {[%clk 0:00:04]} 32... c5 {[%clk 0:00:12.6]} 33. Nxc5
{[%clk 0:00:03.6]} 33... Bc6 {[%clk 0:00:05.8]} 34. Nd3 {[%clk 0:00:02.7]} 34...
Bxe4 {[%clk 0:00:05.4]} 35. Re1 {[%clk 0:00:03.1]} 35... Bg6 {[%clk 0:00:04.2]}
36. Qf3 {[%clk 0:00:02.2]} 36... e4 {[%clk 0:00:04.5]} 37. Qh3 {[%clk
0:00:01.6]} 37... Qd6 {[%clk 0:00:04.2]} 0-1